[Event "Asian Continental-ch Women 2019"]
[Site "XingTai"]
[Date "2019.06.14"]
[Round "8.20"]
[White "Kulkarni Bhakti"]
[Black "Pham, Le Thao Nguyen"]
[Result "0-1"]
[ECO "D11"]
[WhiteElo "2380"]
[BlackElo "2370"]
[Annotator "NA"]
[PlyCount "178"]
[EventDate "2019.06.06"]
[EventType "swiss"]
[EventCountry "CHN"]
[SourceTitle "playchess.com"]
[Source "ChessBase"]
[SourceQuality "1"]
[TimeControl "40/5400+30:1800+30"]

1. d4 {[%emt 0:00:00]} d5 {[%emt 0:00:00]} 2. c4 {[%emt 0:00:05]} c6 {[%emt 0:00:19]} 3. Nf3 {[%emt 0:00:13]} Nf6 {[%emt 0:00:21]} 4. g3 {[%emt 0:00:20]} Bg4 {[%emt 0:01:25]} 5. Ne5 {[%emt 0:00:16]} Bf5 {[%emt 0:00:40]} 6. cxd5 {[%emt 0:00:57]} Qxd5 {[%emt 0:01:28]} 7. Nf3 {[%emt 0:02:10]} Bxb1 {[%emt 0:01:37]} 8. Rxb1 {[%emt 0:00:05]} Qxa2 {[%emt 0:00:30]} 9. Qc2 {[%emt 0:00:23]} Na6 {[%emt 0:08:19]} 10. Bd2 {[%emt 0:01:29]} e6 {[%emt 0:00:55]} 11. Bg2 {[%emt 0:00:39]} Nb4 {[%emt 0:01:13]} 12. Qd1 {[%emt 0:02:23]} Be7 {[%emt 0:03:18]} 13. O-O {[%emt 0:00:28]} O-O {[%emt 0:04:01]} 14. Ne5 {[%emt 0:08:09]} Qa6 {[%emt 0:06:49]} 15. e3 {[%emt 0:06:06]} Qb5 {[%emt 0:05:36]} 16. Ra1 {[%emt 0:05:24]} Rfd8 {[%emt 0:06:38]} 17. Qf3 {[%emt 0:09:53]} Bd6 {[%emt 0:12:53]} 18. Ng4 {[%emt 0:01:33]} Nxg4 {[%emt 0:01:59]} 19. Qxg4 {[%emt 0:00:03]} Nd5 {[%emt 0:07:41]} 20. e4 {[%emt 0:04:18]} Nf6 {[%emt 0:01:48]} 21. Qf3 {[%emt 0:00:28]} Bb4 {[%emt 0:02:21]} 22. Bc3 {[%emt 0:05:34]} a5 {[%emt 0:05:17]} 23. Rfd1 {[%emt 0:09:31]} Bxc3 {[%emt 0:04:07]} 24. bxc3 {[%emt 0:02:02]} Ra7 {[%emt 0:03:01]} 25. e5 {[%emt 0:08:50]} Nd5 {[%emt 0:03:41]} 26. Bf1 {[%emt 0:00:11]} Qb3 {[%emt 0:01:11]} 27. Rdc1 {[%emt 0:00:31]} a4 {[%emt 0:01:54]} 28. Bd3 {[%emt 0:01:20]} g6 {[%emt 0:02:59]} 29. Bb1 {[%emt 0:07:10]} a3 {[%emt 0:03:13]} 30. Ba2 {[%emt 0:01:39]} Qa4 {[%emt 0:00:40]} 31. h4 {[%emt 0:04:46]} Qa5 {[%emt 0:03:13]} 32. h5 {[%emt 0:02:03]} Rd7 {[%emt 0:01:16]} 33. hxg6 {[%emt 0:07:08]} hxg6 {[%emt 0:01:47]} 34. Kg2 {[%emt 0:00:32]} Qd8 {[%emt 0:01:54]} 35. Rh1 {[%emt 0:00:35]} f5 {[%emt 0:00:29]} 36. exf6 {[%emt 0:00:33]} Rf7 {[%emt 0:00:05]} 37. Qd3 {[%emt 0:09:55]} Qxf6 {[%emt 0:00:20]} 38. f4 {[%emt 0:00:06]} Qf5 {[%emt 0:01:15]} 39. Qxf5 {[%emt 0:01:06]} exf5 {[%emt 0:00:36]} 40. Rhe1 {[%emt 0:00:00]} Kg7 {[%emt 0:00:00]} 41. c4 {[%emt 0:05:18]} Nb4 {[%emt 0:02:04]} 42. Bb3 {[%emt 0:01:11]} Rd7 {[%emt 0:01:28]} 43. d5 {[%emt 0:03:48]} a2 {[%emt 0:11:23]} 44. Re2 {[%emt 0:01:43]} Ra3 {[%emt 0:04:01]} 45. Bxa2 {[%emt 0:02:38]} cxd5 {[%emt 0:01:17]} 46. cxd5 {[%emt 0:00:45]} b6 {[%emt 0:02:42]} 47. d6 {[%emt 0:03:07]} Rxa2 {[%emt 0:01:37]} 48. Raxa2 {[%emt 0:00:12]} Nxa2 {[%emt 0:00:03]} 49. Rxa2 {[%emt 0:00:07]} Rxd6 {[%emt 0:00:04]} 50. g4 {[%emt 0:03:36]} Kf6 {[%emt 0:02:14]} 51. Ra8 {[%emt 0:03:49]} Ke6 {[%emt 0:00:59]} 52. Kf3 {[%emt 0:00:42]} Kd7 {[%emt 0:04:20]} 53. g5 {[%emt 0:03:40]} Kc6 {[%emt 0:00:40]} 54. Ke3 {[%emt 0:00:05]} Kc5 {[%emt 0:00:27]} 55. Rc8+ {[%emt 0:00:17]} Rc6 {[%emt 0:00:57]} 56. Rb8 {[%emt 0:01:20]} Kc4 {[%emt 0:01:01]} 57. Rf8 {[%emt 0:00:06]} b5 {[%emt 0:01:49]} 58. Rf6 {[%emt 0:00:06]} Kd5 {[%emt 0:00:48]} 59. Rf8 {[%emt 0:00:09]} b4 {[%emt 0:00:40]} 60. Kd3 {[%emt 0:00:23]} Kc5 {[%emt 0:01:05]} 61. Rb8 {[%emt 0:00:20]} Rd6+ {[%emt 0:00:14]} 62. Kc2 {[%emt 0:00:15]} Rb6 {[%emt 0:01:29]} 63. Rd8 {[%emt 0:00:33]} Rd6 {[%emt 0:02:05]} 64. Rb8 {[%emt 0:00:52]} Re6 {[%emt 0:00:23]} 65. Rb7 {[%emt 0:00:46]} Re2+ {[%emt 0:00:32]} 66. Kb3 {[%emt 0:00:19]} Re3+ {[%emt 0:00:04]} 67. Kc2 {[%emt 0:00:10]} Re4 {[%emt 0:00:44]} 68. Rg7 {[%emt 0:00:20]} Re6 {[%emt 0:00:48]} 69. Rb7 {[%emt 0:00:17]} Rb6 {[%emt 0:00:19]} 70. Rd7 {[%emt 0:00:31]} Kc4 {[%emt 0:00:05]} 71. Rf7 {[%emt 0:01:10]} Kd5 {[%emt 0:00:47]} 72. Re7 {[%emt 0:00:25]} Re6 {[%emt 0:01:00]} 73. Rb7 {[%emt 0:00:12]} Re4 {[%emt 0:00:21]} 74. Rb6 {[%emt 0:00:34]} Rxf4 {[%emt 0:00:11]} 75. Rxg6 {[%emt 0:00:06]} Rg4 {[%emt 0:00:10]} 76. Rg8 {[%emt 0:00:28]} Ke6 {[%emt 0:00:19]} 77. Kd3 {[%emt 0:01:25]} Kf7 {[%emt 0:00:13]} 78. Rb8 {[%emt 0:00:10]} Kg6 {[%emt 0:00:05]} 79. Rg8+ {[%emt 0:00:20]} Kh5 {[%emt 0:00:06]} 80. Ke2 {[%emt 0:00:08]} Rxg5 {[%emt 0:00:12]} 81. Rh8+ {[%emt 0:00:08]} Kg6 {[%emt 0:00:09]} 82. Kf3 {[%emt 0:00:42]} Rg4 {[%emt 0:00:17]} 83. Rb8 {[%emt 0:00:23]} Kf6 {[%emt 0:00:23]} 84. Rb5 {[%emt 0:00:41]} Rc4 {[%emt 0:00:12]} 85. Rb8 {[%emt 0:00:14]} Ke5 {[%emt 0:00:25]} 86. Rb5+ {[%emt 0:00:41]} Kd4 {[%emt 0:00:30]} 87. Rxf5 {[%emt 0:00:16]} Kc3 {[%emt 0:00:16]} 88. Ke2 {[%emt 0:00:55]} b3 {[%emt 0:00:30]} 89. Kd1 {[%emt 0:00:19]} Rd4+ {[%emt 0:00:10]} 0-1

[Event "Asian Continental-ch Women 2019"]
[Site "XingTai"]
[Date "2019.06.14"]
[Round "8.21"]
[White "Li, Xueyi"]
[Black "Li, Yunshan"]
[Result "1-0"]
[ECO "D85"]
[WhiteElo "2305"]
[BlackElo "2264"]
[Annotator "NA"]
[PlyCount "83"]
[EventDate "2019.06.06"]
[EventType "swiss"]
[EventCountry "CHN"]
[SourceTitle "playchess.com"]
[Source "ChessBase"]
[SourceQuality "1"]
[TimeControl "40/5400+30:1800+30"]

1. d4 {[%emt 0:00:00]} Nf6 {[%emt 0:00:00]} 2. c4 {[%emt 0:00:00]} g6 {[%emt 0:00:00]} 3. Nc3 {[%emt 0:00:00]} d5 {[%emt 0:00:03]} 4. cxd5 {[%emt 0:00:03]} Nxd5 {[%emt 0:00:04]} 5. e4 {[%emt 0:00:13]} Nxc3 {[%emt 0:00:11]} 6. bxc3 {[%emt 0:00:12]} Bg7 {[%emt 0:00:18]} 7. Nf3 {[%emt 0:00:11]} c5 {[%emt 0:00:29]} 8. h3 {[%emt 0:00:09]} O-O {[%emt 0:00:48]} 9. Be2 {[%emt 0:01:26]} Nc6 {[%emt 0:04:32]} 10. Be3 {[%emt 0:00:19]} Qa5 {[%emt 0:01:29]} 11. O-O {[%emt 0:03:39]} Rd8 {[%emt 0:07:51]} 12. Bd2 {[%emt 0:03:11]} cxd4 {[%emt 0:16:49]} 13. cxd4 {[%emt 0:00:08]} Qa3 {[%emt 0:00:17]} 14. d5 {[%emt 0:00:36]} Nd4 {[%emt 0:00:55]} 15. Nxd4 {[%emt 0:06:19]} Bxd4 {[%emt 0:00:06]} 16. Bc1 {[%emt 0:01:04]} Bb2 {[%emt 0:05:56]} 17. Qd2 {[%emt 0:18:58]} Bxc1 {[%emt 0:00:21]} 18. Raxc1 {[%emt 0:00:05]} Qd6 {[%emt 0:10:21]} 19. Qe3 {[%emt 0:05:45]} e6 {[%emt 0:05:22]} 20. e5 {[%emt 0:07:42]} Qxd5 {[%emt 0:05:20]} 21. Rfd1 {[%emt 0:00:08]} Qa5 {[%emt 0:00:07]} 22. Rxd8+ {[%emt 0:00:05]} Qxd8 {[%emt 0:00:06]} 23. Rd1 {[%emt 0:00:03]} Qe8 {[%emt 0:04:52]} 24. Bf3 {[%emt 0:04:58]} a5 {[%emt 0:08:42]} 25. Qd4 {[%emt 0:02:56]} Qe7 {[%emt 0:11:41]} 26. Qb6 {[%emt 0:00:56]} Kg7 {[%emt 0:00:55]} 27. Be2 {[%emt 0:01:22]} Qb4 {[%emt 0:07:27]} 28. Qc7 {[%emt 0:01:23]} a4 {[%emt 0:05:51]} 29. a3 {[%emt 0:01:26]} Qa5 {[%emt 0:00:50]} 30. Qd6 {[%emt 0:01:20]} b5 {[%emt 0:01:07]} 31. Qe7 {[%emt 0:04:05]} Ba6 {[%emt 0:00:55]} 32. Bg4 {[%emt 0:02:41]} Qb6 {[%emt 0:01:10]} 33. Rd7 {[%emt 0:00:25]} Rf8 {[%emt 0:00:29]} 34. Bxe6 {[%emt 0:00:22]} Qc6 {[%emt 0:00:50]} 35. Qf6+ {[%emt 0:00:48]} Kh6 {[%emt 0:00:23]} 36. Rxf7 {[%emt 0:00:12]} Rxf7 {[%emt 0:00:15]} 37. Qxf7 {[%emt 0:00:08]} Qc5 {[%emt 0:00:49]} 38. Qf4+ {[%emt 0:00:35]} Kg7 {[%emt 0:00:06]} 39. Qf6+ {[%emt 0:00:15]} Kh6 {[%emt 0:00:05]} 40. Bg8 {[%emt 0:00:00]} Qc1+ {[%emt 0:00:00]} 41. Kh2 {[%emt 0:00:45]} Qxa3 {[%emt 0:24:34]} 42. Qh4+ {[%emt 0:00:12]} 1-0

[Event "Asian Continental-ch Women 2019"]
[Site "XingTai"]
[Date "2019.06.14"]
[Round "8.22"]
[White "Zhai, Mo"]
[Black "Zhang, Xiao"]
[Result "1/2-1/2"]
[ECO "A20"]
[WhiteElo "2358"]
[BlackElo "2234"]
[Annotator "ChessBase"]
[PlyCount "50"]
[EventDate "2019.06.06"]
[EventType "swiss"]
[EventCountry "CHN"]
[SourceTitle "playchess.com"]
[Source "ChessBase"]
[SourceQuality "1"]
[TimeControl "40/5400+30:1800+30"]

1. c4 {[%emt 0:00:00]} e5 {[%emt 0:00:00]} 2. g3 {[%emt 0:00:16]} Nf6 {[%emt 0:00:00]} 3. Bg2 {[%emt 0:00:20]} d5 {[%emt 0:00:35]} 4. cxd5 {[%emt 0:01:08]} Nxd5 {[%emt 0:00:06]} 5. Nf3 {[%emt 0:01:08]} Nc6 {[%emt 0:00:46]} 6. O-O {[%emt 0:01:17]} Be7 {[%emt 0:00:29]} 7. d4 {[%emt 0:00:34]} exd4 {[%emt 0:14:51]} 8. Nxd4 {[%emt 0:00:10]} Nxd4 {[%emt 0:00:47]} 9. Qxd4 {[%emt 0:00:03]} Nf6 {[%emt 0:00:18]} 10. Qxd8+ {[%emt 0:03:18]} Bxd8 {[%emt 0:00:12]} 11. Nc3 {[%emt 0:00:06]} c6 {[%emt 0:00:37]} 12. b4 {[%emt 0:00:46]} Be6 {[%emt 0:04:06]} 13. b5 {[%emt 0:05:11]} Rc8 {[%emt 0:05:15]} 14. bxc6 {[%emt 0:09:10]} bxc6 {[%emt 0:00:06]} 15. Rb1 {[%emt 0:00:24]} O-O {[%emt 0:04:25]} 16. Be3 {[%emt 0:02:10]} Ba5 {[%emt 0:02:28]} 17. Rfc1 {[%emt 0:16:41]} Bxc3 {[%emt 0:03:00]} 18. Rxc3 {[%emt 0:01:23]} Bxa2 {[%emt 0:00:11]} 19. Ra1 {[%emt 0:02:07]} Nd5 {[%emt 0:02:47]} 20. Bxd5 {[%emt 0:01:55]} Bxd5 {[%emt 0:00:06]} 21. Rxa7 {[%emt 0:00:09]} Ra8 {[%emt 0:00:08]} 22. Rca3 {[%emt 0:01:27]} Rxa7 {[%emt 0:00:34]} 23. Rxa7 {[%emt 0:00:02]} Bc4 {[%emt 0:01:34]} 24. Bc5 {[%emt 0:00:39]} Rb8 {[%emt 0:00:24]} 25. e4 {[%emt 0:01:21]} Bd3 {[%emt 0:00:37]} 1/2-1/2

[Event "Asian Continental-ch Women 2019"]
[Site "XingTai"]
[Date "2019.06.14"]
[Round "8.23"]
[White "Dauletova, Gulmira"]
[Black "Vaishali R"]
[Result "0-1"]
[ECO "B56"]
[WhiteElo "2252"]
[BlackElo "2338"]
[Annotator "NA"]
[PlyCount "154"]
[EventDate "2019.06.06"]
[EventType "swiss"]
[EventCountry "CHN"]
[SourceTitle "playchess.com"]
[Source "ChessBase"]
[SourceQuality "1"]
[TimeControl "40/5400+30:1800+30"]

1. e4 {[%emt 0:00:00]} c5 {[%emt 0:00:09]} 2. Nf3 {[%emt 0:00:00]} Nc6 {[%emt 0:00:03]} 3. d4 {[%emt 0:00:00]} cxd4 {[%emt 0:00:05]} 4. Nxd4 {[%emt 0:00:01]} Nf6 {[%emt 0:00:03]} 5. Nc3 {[%emt 0:00:12]} d6 {[%emt 0:00:04]} 6. f3 {[%emt 0:00:08]} e5 {[%emt 0:00:06]} 7. Nb3 {[%emt 0:00:06]} Be7 {[%emt 0:00:06]} 8. Be3 {[%emt 0:00:07]} O-O {[%emt 0:00:05]} 9. Qd2 {[%emt 0:00:20]} a5 {[%emt 0:00:09]} 10. Bb5 {[%emt 0:00:18]} Be6 {[%emt 0:00:19]} 11. O-O {[%emt 0:00:43]} Na7 {[%emt 0:05:25]} 12. Be2 {[%emt 0:00:11]} Nc6 {[%emt 0:00:31]} 13. Bb5 {[%emt 0:00:18]} Na7 {[%emt 0:03:45]} 14. Be2 {[%emt 0:01:22]} Nc8 {[%emt 0:00:05]} 15. a4 {[%emt 0:00:08]} Nb6 {[%emt 0:00:35]} 16. Kh1 {[%emt 0:00:21]} Nc4 {[%emt 0:16:19]} 17. Bxc4 {[%emt 0:01:32]} Bxc4 {[%emt 0:00:03]} 18. Rfd1 {[%emt 0:00:06]} Qc7 {[%emt 0:07:03]} 19. Bg5 {[%emt 0:04:01]} Rfd8 {[%emt 0:03:52]} 20. Bxf6 {[%emt 0:08:06]} Bxf6 {[%emt 0:00:06]} 21. Nd5 {[%emt 0:00:41]} Bxd5 {[%emt 0:00:22]} 22. Qxd5 {[%emt 0:00:07]} h5 {[%emt 0:14:47]} 23. c3 {[%emt 0:02:28]} Bg5 {[%emt 0:03:20]} 24. Rd3 {[%emt 0:09:44]} Qb6 {[%emt 0:02:42]} 25. Rf1 {[%emt 0:00:26]} Rac8 {[%emt 0:06:41]} 26. Rdd1 {[%emt 0:11:46]} h4 {[%emt 0:05:24]} 27. g3 {[%emt 0:22:04]} h3 {[%emt 0:08:12]} 28. Ra1 {[%emt 0:14:37]} Qa6 {[%emt 0:07:26]} 29. Qb5 {[%emt 0:02:11]} Qxb5 {[%emt 0:03:23]} 30. axb5 {[%emt 0:00:01]} b6 {[%emt 0:00:06]} 31. Rfd1 {[%emt 0:04:10]} Rc4 {[%emt 0:02:40]} 32. Ra2 {[%emt 0:00:27]} g6 {[%emt 0:02:16]} 33. g4 {[%emt 0:02:30]} Kf8 {[%emt 0:04:41]} 34. Kg1 {[%emt 0:03:05]} Be3+ {[%emt 0:01:26]} 35. Kf1 {[%emt 0:00:06]} Ke7 {[%emt 0:00:19]} 36. Ke2 {[%emt 0:00:33]} Bf4 {[%emt 0:00:08]} 37. Raa1 {[%emt 0:04:01]} Bxh2 {[%emt 0:01:21]} 38. Rh1 {[%emt 0:02:28]} Bf4 {[%emt 0:00:05]} 39. Kd3 {[%emt 0:06:37]} Rc7 {[%emt 0:00:33]} 40. Rxh3 {[%emt 0:00:00]} d5 {[%emt 0:00:00]} 41. exd5 {[%emt 0:02:15]} Rxd5+ {[%emt 0:01:10]} 42. Kc2 {[%emt 0:00:15]} Rxb5 {[%emt 0:00:57]} 43. Nc1 {[%emt 0:02:34]} Rd7 {[%emt 0:10:07]} 44. Nd3 {[%emt 0:00:40]} Rxd3 {[%emt 0:00:54]} 45. Kxd3 {[%emt 0:00:05]} Rxb2 {[%emt 0:00:03]} 46. Rh8 {[%emt 0:05:24]} Rf2 {[%emt 0:12:07]} 47. Ke4 {[%emt 0:00:34]} Re2+ {[%emt 0:07:06]} 48. Kd5 {[%emt 0:00:03]} Re3 {[%emt 0:00:12]} 49. Rb8 {[%emt 0:01:30]} Rxc3 {[%emt 0:03:03]} 50. Rxb6 {[%emt 0:01:06]} Rd3+ {[%emt 0:01:24]} 51. Kc4 {[%emt 0:02:11]} Rd4+ {[%emt 0:02:09]} 52. Kb5 {[%emt 0:00:41]} Bd2 {[%emt 0:00:35]} 53. Ra3 {[%emt 0:07:50]} Kf8 {[%emt 0:00:53]} 54. Ra6 {[%emt 0:01:08]} Kg7 {[%emt 0:00:31]} 55. Ra7 {[%emt 0:00:51]} Kf6 {[%emt 0:00:55]} 56. Rb3 {[%emt 0:01:58]} Kg7 {[%emt 0:00:33]} 57. Kc6 {[%emt 0:01:05]} Bb4 {[%emt 0:00:27]} 58. Re3 {[%emt 0:03:11]} Rd6+ {[%emt 0:00:22]} 59. Kb5 {[%emt 0:00:49]} Rd5+ {[%emt 0:00:25]} 60. Kc4 {[%emt 0:00:48]} Rc5+ {[%emt 0:00:19]} 61. Kb3 {[%emt 0:00:16]} Rb5 {[%emt 0:00:55]} 62. Rd3 {[%emt 0:00:49]} Rb6 {[%emt 0:00:29]} 63. Kc4 {[%emt 0:01:25]} Rc6+ {[%emt 0:00:33]} 64. Kd5 {[%emt 0:01:47]} Re6 {[%emt 0:00:26]} 65. Ke4 {[%emt 0:00:43]} Be1 {[%emt 0:00:34]} 66. Rd5 {[%emt 0:01:44]} Bc3 {[%emt 0:00:23]} 67. g5 {[%emt 0:02:29]} Bd4 {[%emt 0:00:39]} 68. Raxa5 {[%emt 0:00:59]} f5+ {[%emt 0:00:28]} 69. Kd3 {[%emt 0:00:28]} Re7 {[%emt 0:00:32]} 70. Rab5 {[%emt 0:00:57]} Ba1 {[%emt 0:00:31]} 71. Ke2 {[%emt 0:02:05]} Ra7 {[%emt 0:00:23]} 72. Rb1 {[%emt 0:00:25]} Kf7 {[%emt 0:00:32]} 73. Rd6 {[%emt 0:00:10]} Bd4 {[%emt 0:00:24]} 74. f4 {[%emt 0:00:30]} Ra2+ {[%emt 0:00:15]} 75. Kd3 {[%emt 0:00:50]} Ra3+ {[%emt 0:00:07]} 76. Kc4 {[%emt 0:00:11]} Rc3+ {[%emt 0:00:12]} 77. Kd5 {[%emt 0:00:07]} Rc5# {[%emt 0:00:03]} 0-1

[Event "Asian Continental-ch Women 2019"]
[Site "XingTai"]
[Date "2019.06.14"]
[Round "8.24"]
[White "Ren, Xiaoyi"]
[Black "Kurbonboeva, Sarvinoz"]
[Result "1/2-1/2"]
[ECO "D79"]
[WhiteElo "2255"]
[BlackElo "2259"]
[Annotator "NA"]
[PlyCount "113"]
[EventDate "2019.06.06"]
[EventType "swiss"]
[EventCountry "CHN"]
[SourceTitle "playchess.com"]
[Source "ChessBase"]
[SourceQuality "1"]
[TimeControl "40/5400+30:1800+30"]

1. d4 {[%emt 0:00:00]} Nf6 {[%emt 0:00:00]} 2. c4 {[%emt 0:00:00]} g6 {[%emt 0:00:00]} 3. Nf3 {[%emt 0:00:00]} Bg7 {[%emt 0:00:00]} 4. g3 {[%emt 0:00:11]} c6 {[%emt 0:01:12]} 5. Bg2 {[%emt 0:00:06]} d5 {[%emt 0:00:14]} 6. cxd5 {[%emt 0:00:05]} cxd5 {[%emt 0:00:05]} 7. Ne5 {[%emt 0:00:06]} O-O {[%emt 0:01:02]} 8. Nc3 {[%emt 0:02:23]} Bf5 {[%emt 0:01:26]} 9. O-O {[%emt 0:04:38]} Ne4 {[%emt 0:00:45]} 10. Qb3 {[%emt 0:07:07]} Nc6 {[%emt 0:01:30]} 11. Nxc6 {[%emt 0:05:42]} bxc6 {[%emt 0:00:06]} 12. Nxe4 {[%emt 0:00:03]} Bxe4 {[%emt 0:01:43]} 13. Bxe4 {[%emt 0:02:47]} dxe4 {[%emt 0:00:05]} 14. Rd1 {[%emt 0:00:08]} Qb6 {[%emt 0:00:38]} 15. Qxb6 {[%emt 0:01:45]} axb6 {[%emt 0:00:02]} 16. Bg5 {[%emt 0:00:14]} Rfd8 {[%emt 0:01:31]} 17. e3 {[%emt 0:10:16]} Rd7 {[%emt 0:16:43]} 18. g4 {[%emt 0:03:18]} h6 {[%emt 0:34:59]} 19. Bf4 {[%emt 0:00:16]} g5 {[%emt 0:00:07]} 20. Bg3 {[%emt 0:00:20]} e5 {[%emt 0:01:37]} 21. Bxe5 {[%emt 0:02:54]} Bxe5 {[%emt 0:00:09]} 22. dxe5 {[%emt 0:00:03]} Rxa2 {[%emt 0:15:34]} 23. Rxd7 {[%emt 0:01:08]} Rxa1+ {[%emt 0:00:03]} 24. Kg2 {[%emt 0:00:03]} Ra5 {[%emt 0:00:47]} 25. Rd6 {[%emt 0:02:19]} Rxe5 {[%emt 0:03:18]} 26. Rxc6 {[%emt 0:00:06]} Rb5 {[%emt 0:00:07]} 27. Rxh6 {[%emt 0:00:36]} Rxb2 {[%emt 0:00:14]} 28. Rd6 {[%emt 0:00:05]} Rb4 {[%emt 0:01:32]} 29. Rd5 {[%emt 0:00:11]} f6 {[%emt 0:00:18]} 30. Rd7 {[%emt 0:00:06]} Kf8 {[%emt 0:00:44]} 31. Kg3 {[%emt 0:00:10]} Ke8 {[%emt 0:00:14]} 32. Rc7 {[%emt 0:00:06]} b5 {[%emt 0:01:00]} 33. h4 {[%emt 0:00:39]} gxh4+ {[%emt 0:09:19]} 34. Kxh4 {[%emt 0:00:05]} Rb2 {[%emt 0:00:03]} 35. Kg3 {[%emt 0:00:07]} Rb4 {[%emt 0:03:04]} 36. Rb7 {[%emt 0:00:08]} Rb2 {[%emt 0:00:54]} 37. Rc7 {[%emt 0:01:23]} Rb4 {[%emt 0:00:25]} 38. Rg7 {[%emt 0:02:14]} Rb1 {[%emt 0:01:38]} 39. Kg2 {[%emt 0:01:11]} Kf8 {[%emt 0:02:06]} 40. Rd7 {[%emt 0:00:00]} Rb4 {[%emt 0:00:00]} 41. Kg3 {[%emt 0:02:16]} Ke8 {[%emt 0:00:12]} 42. Rb7 {[%emt 0:00:05]} Rb2 {[%emt 0:00:32]} 43. Kf4 {[%emt 0:00:12]} Rxf2+ {[%emt 0:00:15]} 44. Kxe4 {[%emt 0:00:02]} Re2 {[%emt 0:02:21]} 45. Kf5 {[%emt 0:01:58]} Rf2+ {[%emt 0:04:22]} 46. Ke6 {[%emt 0:03:13]} Kf8 {[%emt 0:00:05]} 47. Rxb5 {[%emt 0:00:25]} Kg7 {[%emt 0:00:10]} 48. Rb4 {[%emt 0:06:23]} Re2 {[%emt 0:01:45]} 49. Kf5 {[%emt 0:00:08]} Rxe3 {[%emt 0:06:05]} 50. Rb7+ {[%emt 0:00:15]} Kh6 {[%emt 0:00:10]} 51. Kxf6 {[%emt 0:00:23]} Rf3+ {[%emt 0:00:04]} 52. Ke5 {[%emt 0:00:06]} Kg6 {[%emt 0:00:08]} 53. Rb8 {[%emt 0:00:16]} Kg7 {[%emt 0:00:11]} 54. Rb6 {[%emt 0:00:17]} Rf1 {[%emt 0:00:17]} 55. Ke4 {[%emt 0:00:22]} Rf6 {[%emt 0:00:38]} 56. Rb8 {[%emt 0:03:03]} Rf1 {[%emt 0:00:16]} 57. Rb7+ {[%emt 1:16:07]} 1/2-1/2

[Event "Asian Continental-ch Women 2019"]
[Site "XingTai"]
[Date "2019.06.14"]
[Round "8.25"]
[White "Gomes, Mary Ann"]
[Black "Hoang, Thi Bao Tram"]
[Result "1/2-1/2"]
[ECO "A11"]
[WhiteElo "2314"]
[BlackElo "2293"]
[Annotator "NA"]
[PlyCount "83"]
[EventDate "2019.06.06"]
[EventType "swiss"]
[EventCountry "CHN"]
[SourceTitle "playchess.com"]
[Source "ChessBase"]
[SourceQuality "1"]
[TimeControl "40/5400+30:1800+30"]

1. Nf3 {[%emt 0:00:00]} Nf6 {[%emt 0:00:04]} 2. g3 {[%emt 0:00:00]} g6 {[%emt 0:01:02]} 3. b3 {[%emt 0:00:04]} Bg7 {[%emt 0:00:17]} 4. Bb2 {[%emt 0:00:05]} O-O {[%emt 0:00:55]} 5. Bg2 {[%emt 0:00:07]} d5 {[%emt 0:00:24]} 6. c4 {[%emt 0:00:07]} c6 {[%emt 0:00:29]} 7. O-O {[%emt 0:00:09]} a5 {[%emt 0:04:12]} 8. d3 {[%emt 0:00:35]} Bg4 {[%emt 0:01:48]} 9. Nbd2 {[%emt 0:00:14]} Na6 {[%emt 0:04:20]} 10. h3 {[%emt 0:00:44]} Bxf3 {[%emt 0:01:54]} 11. Nxf3 {[%emt 0:00:06]} e6 {[%emt 0:01:28]} 12. a3 {[%emt 0:01:06]} Qe7 {[%emt 0:04:41]} 13. Qc2 {[%emt 0:00:09]} Rfd8 {[%emt 0:02:36]} 14. Bc3 {[%emt 0:01:03]} Nc5 {[%emt 0:02:09]} 15. b4 {[%emt 0:00:10]} axb4 {[%emt 0:00:10]} 16. axb4 {[%emt 0:00:05]} Ncd7 {[%emt 0:00:27]} 17. e4 {[%emt 0:00:37]} Nf8 {[%emt 0:13:00]} 18. Rfe1 {[%emt 0:08:45]} dxc4 {[%emt 0:04:04]} 19. dxc4 {[%emt 0:00:20]} Ne8 {[%emt 0:02:48]} 20. e5 {[%emt 0:01:14]} Qc7 {[%emt 0:01:27]} 21. Nd2 {[%emt 0:02:32]} Rxa1 {[%emt 0:02:21]} 22. Bxa1 {[%emt 0:00:08]} Nd7 {[%emt 0:00:15]} 23. Nf3 {[%emt 0:02:39]} Nb6 {[%emt 0:03:14]} 24. Ng5 {[%emt 0:08:06]} Qe7 {[%emt 0:05:07]} 25. c5 {[%emt 0:01:06]} Nd5 {[%emt 0:05:02]} 26. Bxd5 {[%emt 0:01:12]} exd5 {[%emt 0:01:14]} 27. f4 {[%emt 0:01:15]} Ra8 {[%emt 0:01:56]} 28. Bd4 {[%emt 0:00:46]} Nc7 {[%emt 0:00:40]} 29. Ra1 {[%emt 0:00:20]} Qd8 {[%emt 0:04:12]} 30. Rxa8 {[%emt 0:01:31]} Qxa8 {[%emt 0:00:22]} 31. f5 {[%emt 0:00:33]} Qa3 {[%emt 0:00:40]} 32. Kg2 {[%emt 0:06:31]} Bh6 {[%emt 0:09:21]} 33. Nxf7 {[%emt 0:07:14]} Kxf7 {[%emt 0:00:42]} 34. e6+ {[%emt 0:00:17]} Ke7 {[%emt 0:04:03]} 35. Be5 {[%emt 0:26:21]} Qxb4 {[%emt 0:06:24]} 36. fxg6 {[%emt 0:16:02]} hxg6 {[%emt 0:02:02]} 37. Qxg6 {[%emt 0:03:05]} Qd2+ {[%emt 0:02:43]} 38. Kf1 {[%emt 0:00:25]} Qd1+ {[%emt 0:02:08]} 39. Kf2 {[%emt 0:01:38]} Qd2+ {[%emt 0:03:49]} 40. Kf1 {[%emt 0:00:00]} Qd1+ {[%emt 0:00:00]} 41. Kf2 {[%emt 0:01:08]} Qd2+ {[%emt 0:08:07]} 42. Kf1 {[%emt 0:00:07]} 1/2-1/2